[Event "3rd Matrix Cup 2024"]
[Site "New Delhi"]
[Date "2024.04.09"]
[Round "8.3"]
[White "Mrityunjay Kumar"]
[Black "Ayaan Garg"]
[Result "1-0"]
[ECO "B11"]
[WhiteElo "1900"]
[BlackElo "1801"]
[Annotator "ChessBase"]
[PlyCount "230"]
[EventDate "2024.04.07"]
[EventType "swiss"]
[EventCountry "IND"]
[SourceTitle "playchess.com"]
[Source "ChessBase"]
[SourceQuality "1"]
[TimeControl "5400+30"]

1. e4 {[%emt 0:00:11]} c6 {[%emt 0:00:30]} 2. Nc3 {[%emt 0:00:08]} d5 {[%emt 0:00:06]} 3. Nf3 {[%emt 0:00:07]} Bg4 {[%emt 0:00:06]} 4. h3 {[%emt 0:00:08]} Bxf3 {[%emt 0:00:03]} 5. Qxf3 {[%emt 0:00:07]} Nf6 {[%emt 0:00:04]} 6. Be2 {[%emt 0:00:19]} e6 {[%emt 0:00:04]} 7. O-O {[%emt 0:00:12]} Be7 {[%emt 0:00:14]} 8. d3 {[%emt 0:00:18]} O-O {[%emt 0:00:43]} 9. Qg3 {[%emt 0:01:18]} Nbd7 {[%emt 0:01:05]} 10. Re1 {[%emt 0:09:35]} Bb4 {[%emt 0:07:40]} 11. e5 {[%emt 0:01:26]} Ne8 {[%emt 0:00:33]} 12. a3 {[%emt 0:00:20]} Ba5 {[%emt 0:01:32]} 13. d4 {[%emt 0:11:24]} Bb6 {[%emt 0:02:10]} 14. Bd3 {[%emt 0:01:06]} g6 {[%emt 0:03:43]} 15. Ne2 {[%emt 0:04:25]} c5 {[%emt 0:03:14]} 16. c3 {[%emt 0:00:47]} Ng7 {[%emt 0:01:05]} 17. Bg5 {[%emt 0:02:21]} Qc8 {[%emt 0:02:06]} 18. Rad1 {[%emt 0:06:40]} Bd8 {[%emt 0:02:33]} 19. Bh6 {[%emt 0:01:02]} Be7 {[%emt 0:02:56]} 20. f4 {[%emt 0:06:56]} c4 {[%emt 0:05:22]} 21. Bc2 {[%emt 0:00:22]} Qd8 {[%emt 0:01:10]} 22. Qf3 {[%emt 0:00:16]} f5 {[%emt 0:07:21]} 23. g4 {[%emt 0:02:33]} Rf7 {[%emt 0:01:10]} 24. Kh1 {[%emt 0:03:12]} Bf8 {[%emt 0:06:23]} 25. Rg1 {[%emt 0:00:24]} Kh8 {[%emt 0:00:58]} 26. Qg3 {[%emt 0:00:39]} Qe8 {[%emt 0:12:56]} 27. Qf2 {[%emt 0:01:51]} Nb6 {[%emt 0:02:42]} 28. Ng3 {[%emt 0:00:24]} Be7 {[%emt 0:01:06]} 29. g5 {[%emt 0:07:09]} Qb5 {[%emt 0:03:04]} 30. Bb1 {[%emt 0:00:46]} Ne8 {[%emt 0:02:23]} 31. h4 {[%emt 0:00:06]} Bf8 {[%emt 0:00:49]} 32. Rg2 {[%emt 0:00:26]} Rc8 {[%emt 0:04:22]} 33. Rdg1 {[%emt 0:00:09]} Rcc7 {[%emt 0:00:26]} 34. Rh2 {[%emt 0:03:06]} Kg8 {[%emt 0:02:26]} 35. Kg2 {[%emt 0:01:12]} Na4 {[%emt 0:01:10]} 36. Kf3 {[%emt 0:00:32]} Bg7 {[%emt 0:01:04]} 37. h5 {[%emt 0:00:25]} Kf8 {[%emt 0:00:33]} 38. Nf1 {[%emt 0:03:31]} Ke7 {[%emt 0:01:02]} 39. Ne3 {[%emt 0:00:04]} Kd8 {[%emt 0:00:25]} 40. Nd1 {[%emt 0:00:55]} Kc8 {[%emt 0:01:51]} 41. Qe2 {[%emt 0:01:56]} a6 {[%emt 0:00:47]} 42. Rgh1 {[%emt 0:00:52]} Kb8 {[%emt 0:01:21]} 43. Ke3 {[%emt 0:01:34]} Bh8 {[%emt 0:04:12]} 44. Qc2 {[%emt 0:01:11]} Ka7 {[%emt 0:00:31]} 45. Kd2 {[%emt 0:00:07]} Rc8 {[%emt 0:04:00]} 46. Kc1 {[%emt 0:02:25]} Nc7 {[%emt 0:00:17]} 47. Ba2 {[%emt 0:01:42]} Na8 {[%emt 0:00:25]} 48. Rh4 {[%emt 0:01:08]} a5 {[%emt 0:00:33]} 49. R1h3 {[%emt 0:00:19]} N4b6 {[%emt 0:00:26]} 50. Qh2 {[%emt 0:00:53]} Qe8 {[%emt 0:00:52]} 51. Bb1 {[%emt 0:00:48]} Nd7 {[%emt 0:02:15]} 52. Bc2 {[%emt 0:00:15]} Nab6 {[%emt 0:00:11]} 53. Ne3 {[%emt 0:00:24]} Nb8 {[%emt 0:00:30]} 54. Qh1 {[%emt 0:01:53]} Nc6 {[%emt 0:01:23]} 55. Qd1 {[%emt 0:00:12]} Ne7 {[%emt 0:00:35]} 56. Ng2 {[%emt 0:00:49]} Rd8 {[%emt 0:01:35]} 57. a4 {[%emt 0:02:08]} Rc8 {[%emt 0:00:08]} 58. Rh1 {[%emt 0:00:53]} Qd8 {[%emt 0:00:45]} 59. R4h3 {[%emt 0:01:02]} Qe8 {[%emt 0:00:07]} 60. Kd2 {[%emt 0:00:22]} Qd7 {[%emt 0:10:27]} 61. Qa1 {[%emt 0:00:38]} Qe8 {[%emt 0:00:00]} 62. Qa3 {[%emt 0:00:40]} Qd7 {[%emt 0:00:00]} 63. Ne1 {[%emt 0:01:04]} Qe8 {[%emt 0:00:00]} 64. Nf3 {[%emt 0:00:10]} Qd7 {[%emt 0:00:00]} 65. Ke3 {[%emt 0:00:07]} Qc6 {[%emt 0:00:00]} 66. Nd2 {[%emt 0:00:46]} Qd7 {[%emt 0:00:00]} 67. Qa1 {[%emt 0:00:46]} Qe8 {[%emt 0:00:00]} 68. Qd1 {[%emt 0:00:07]} Qd8 {[%emt 0:00:00]} 69. Nb1 {[%emt 0:00:07]} Na8 {[%emt 0:00:00]} 70. Na3 {[%emt 0:00:15]} Nc7 {[%emt 0:00:00]} 71. Qa1 {[%emt 0:01:13]} Kb8 {[%emt 0:00:00]} 72. b4 {[%emt 0:01:21]} cxb3 {[%emt 0:00:00]} 73. Bxb3 {[%emt 0:00:03]} Nc6 {[%emt 0:00:00]} 74. Bc2 {[%emt 0:01:18]} Na7 {[%emt 0:00:12]} 75. Bd3 {[%emt 0:00:09]} Na8 {[%emt 0:00:22]} 76. Rb1 {[%emt 0:00:34]} Nb6 {[%emt 0:00:31]} 77. Nb5 {[%emt 0:02:33]} Nxb5 {[%emt 0:00:17]} 78. Rxb5 {[%emt 0:00:10]} Nc4+ {[%emt 0:00:15]} 79. Bxc4 {[%emt 0:02:12]} Rxc4 {[%emt 0:00:07]} 80. Rh1 {[%emt 0:01:29]} Bg7 {[%emt 0:02:10]} 81. Bxg7 {[%emt 0:02:21]} Rxg7 {[%emt 0:00:06]} 82. h6 {[%emt 0:00:34]} Rgc7 {[%emt 0:00:12]} 83. Rb3 {[%emt 0:01:56]} Qd7 {[%emt 0:00:53]} 84. Ra3 {[%emt 0:00:08]} Ka7 {[%emt 0:01:22]} 85. Rb1 {[%emt 0:00:08]} R7c6 {[%emt 0:00:19]} 86. Kd2 {[%emt 0:01:51]} Qc7 {[%emt 0:01:08]} 87. Rab3 {[%emt 0:00:51]} b6 {[%emt 0:00:07]} 88. Qa3 {[%emt 0:00:24]} Kb7 {[%emt 0:00:31]} 89. Ra1 {[%emt 0:02:15]} Qd8 {[%emt 0:00:34]} 90. Qb2 {[%emt 0:00:22]} Qc7 {[%emt 0:00:05]} 91. Raa3 {[%emt 0:00:08]} Ka7 {[%emt 0:00:34]} 92. Rb5 {[%emt 0:00:13]} Ka6 {[%emt 0:00:34]} 93. Qa1 {[%emt 0:01:51]} Rxa4 {[%emt 0:00:48]} 94. Rxb6+ {[%emt 0:00:38]} Qxb6 {[%emt 0:00:17]} 95. Rxa4 {[%emt 0:00:10]} Qb5 {[%emt 0:00:04]} 96. Rb4 {[%emt 0:00:25]} Rc4 {[%emt 0:01:20]} 97. Rxb5 {[%emt 0:00:09]} Kxb5 {[%emt 0:00:04]} 98. Qb2+ {[%emt 0:00:14]} Ka6 {[%emt 0:00:02]} 99. Qb8 {[%emt 0:00:09]} a4 {[%emt 0:00:02]} 100. Kc2 {[%emt 0:00:32]} Ka5 {[%emt 0:00:15]} 101. Qa7+ {[%emt 0:00:13]} Kb5 {[%emt 0:00:02]} 102. Qxh7 {[%emt 0:00:11]} a3 {[%emt 0:00:10]} 103. Qb7+ {[%emt 0:00:10]} Ka5 {[%emt 0:00:02]} 104. Qa7+ {[%emt 0:00:08]} Kb5 {[%emt 0:00:03]} 105. Qxa3 {[%emt 0:00:09]} Rc7 {[%emt 0:00:05]} 106. Qb4+ {[%emt 0:00:16]} Ka6 {[%emt 0:09:27]} 107. Qd6+ {[%emt 0:00:06]} Kb7 {[%emt 0:00:00]} 108. Qxc7+ {[%emt 0:00:09]} Kxc7 {[%emt 0:00:00]} 109. h7 {[%emt 0:00:08]} Kc6 {[%emt 0:00:00]} 110. h8=Q {[%emt 0:00:07]} Kd7 {[%emt 0:00:00]} 111. Kb3 {[%emt 0:00:19]} Kc6 {[%emt 0:00:00]} 112. Kb4 {[%emt 0:00:08]} Kd7 {[%emt 0:00:00]} 113. Kc5 {[%emt 0:00:10]} Ke7 {[%emt 0:00:00]} 114. Qg7+ {[%emt 0:00:09]} Ke8 {[%emt 0:00:00]} 115. Kd6 {[%emt 0:00:06]} Kd8 {[%emt 0:00:00]} 1-0

[Event "3rd Matrix Cup 2024"]
[Site "New Delhi"]
[Date "2024.04.09"]
[Round "8.4"]
[White "Shreyash Singh"]
[Black "Pushpendra"]
[Result "1-0"]
[ECO "B07"]
[WhiteElo "1853"]
[BlackElo "1771"]
[Annotator "NA RC"]
[PlyCount "81"]
[EventDate "2024.04.07"]
[EventType "swiss"]
[EventCountry "IND"]
[SourceTitle "playchess.com"]
[Source "ChessBase"]
[SourceQuality "1"]
[TimeControl "5400+30"]

1. e4 {[%emt 0:00:04]} g6 {[%emt 0:00:47]} 2. d4 {[%emt 0:00:07]} Bg7 {[%emt 0:00:07]} 3. Nc3 {[%emt 0:00:05]} d6 {[%emt 0:03:25]} 4. Be3 {[%emt 0:00:14]} Nf6 {[%emt 0:00:28]} 5. f3 {[%emt 0:00:07]} Nc6 {[%emt 0:00:53]} 6. Qd2 {[%emt 0:00:35]} h5 {[%emt 0:02:29] B07: Pirc Defence: Miscellaneous Systems.} 7. h4 {[%emt 0:00:52]} e5 {[%emt 0:01:19]} 8. d5 {[%emt 0:22:45]} Ne7 {[%emt 0:00:51]} 9. Nh3 {[%emt 0:01:20]} Bxh3 {[%emt 0:03:07]} 10. Rxh3 {[%emt 0:00:04]} c5 {[%emt 0:15:23]} 11. Bb5+ {[%emt 0:15:36]} Kf8 {[%emt 0:04:12]} 12. Be2 {[%emt 0:00:37]} a6 {[%emt 0:00:54]} 13. a4 {[%emt 0:01:18]} b6 {[%emt 0:00:36]} 14. Rh1 {[%emt 0:01:29]} Qd7 {[%emt 0:06:58]} 15. Kf2 {[%emt 0:03:41]} Kg8 {[%emt 0:06:51]} 16. Rhb1 {[%emt 0:02:07]} Qc7 {[%emt 0:03:29]} 17. Bc4 {[%emt 0:01:08]} Kh7 {[%emt 0:02:51]} 18. Qe2 {[%emt 0:01:49]} a5 {[%emt 0:01:46]} 19. Rg1 {[%emt 0:06:00]} Kg8 {[%emt 0:02:19]} 20. Raf1 {[%emt 0:01:28]} Ne8 {[%emt 0:01:55]} 21. Ke1 {[%emt 0:04:46]} f5 {[%emt 0:00:43]} 22. f4 $16 {[%emt 0:07:35]} (22. g4 $18 f4 23. Bf2) 22... exf4 {[%emt 0:14:25]} 23. Bxf4 {[%emt 0:00:35]} Bxc3+ {[%emt 0:03:15]} 24. bxc3 {[%emt 0:02:03]} Kh7 {[%emt 0:08:30]} 25. Kd2 {[%emt 0:09:59]} Nf6 {[%emt 0:00:32]} 26. exf5 {[%emt 0:01:29]} Nxf5 {[%emt 0:00:32]} 27. Qe6 {[%emt 0:01:34]} Rhf8 {[%emt 0:00:47]} 28. Bb5 {[%emt 0:01:12]} Ng7 {[%emt 0:01:16]} 29. Qe2 {[%emt 0:01:19]} Nxd5 {[%emt 0:00:57]} 30. Bg5 {[%emt 0:00:12]} Nf5 {[%emt 0:04:40]} 31. g4 {[%emt 0:00:56]} hxg4 {[%emt 0:00:35]} 32. Qxg4 {[%emt 0:00:21]} Qg7 {[%emt 0:00:37]} 33. Rf3 {[%emt 0:00:48]} Nf6 {[%emt 0:00:45]} 34. Bxf6 {[%emt 0:00:49]} Rxf6 {[%emt 0:00:29]} 35. h5 {[%emt 0:01:02]} Qh6+ {[%emt 0:00:22]} 36. Kd1 {[%emt 0:02:58]} gxh5 {[%emt 0:02:29]} 37. Qe4 {[%emt 0:01:17]} d5 {[%emt 0:00:35]} 38. Qe5 {[%emt 0:00:27]} Qf8 {[%emt 0:04:27]} 39. Rxf5 {[%emt 0:00:23]} Rxf5 {[%emt 0:00:56]} 40. Bd3 {[%emt 0:00:05]} Kh6 {[%emt 0:00:50]} 41. Bxf5 {[%emt 0:00:11]} 1-0

[Event "3rd Matrix Cup 2024"]
[Site "New Delhi"]
[Date "2024.04.09"]
[Round "8.5"]
[White "Lakshmi Charan Naidu G"]
[Black "Mehul Sondhi"]
[Result "*"]
[ECO "D02"]
[WhiteElo "1753"]
[BlackElo "1833"]
[Annotator "NA RC"]
[PlyCount "46"]
[EventDate "2024.04.07"]
[EventType "swiss"]
[EventCountry "IND"]
[SourceTitle "playchess.com"]
[Source "ChessBase"]
[SourceQuality "1"]
[TimeControl "5400+30"]

1. d4 {[%emt 0:03:25]} d5 {[%emt 0:00:09]} 2. Nf3 {[%emt 0:00:05]} Nf6 {[%emt 0:00:05]} 3. Bf4 {[%emt 0:00:06]} c5 {[%emt 0:00:07]} 4. e3 {[%emt 0:00:03]} Nc6 {[%emt 0:00:07]} 5. Nbd2 {[%emt 0:00:03]} Qb6 {[%emt 0:01:15]} 6. dxc5 {[%emt 0:00:06]} Qxb2 {[%emt 0:00:10]} 7. Rb1 {[%emt 0:00:03]} Qc3 {[%emt 0:00:24]} 8. Bb5 {[%emt 0:00:03]} g6 {[%emt 0:00:35]} 9. O-O {[%emt 0:01:48]} Bg7 {[%emt 0:00:38]} 10. Ne5 {[%emt 0:08:37]} Bd7 {[%emt 0:03:06]} 11. Nxd7 {[%emt 0:01:29]} Nxd7 {[%emt 0:00:17]} 12. Nf3 {[%emt 0:01:04]} Qxc5 {[%emt 0:01:50]} 13. c4 {[%emt 0:03:58]} dxc4 {[%emt 0:04:16]} 14. e4 $17 {[%emt 0:01:41]} (14. Nd2 $142) 14... Nf6 {[%emt 0:24:13]} 15. Be3 {[%emt 0:02:54]} Qh5 {[%emt 0:01:40]} 16. Bxc4 {[%emt 0:01:33]} O-O {[%emt 0:01:35]} 17. Rxb7 {[%emt 0:03:39]} Rad8 {[%emt 0:04:58]} 18. Qa4 {[%emt 0:02:19]} Ne5 {[%emt 0:04:25]} 19. Be2 {[%emt 0:04:56]} Nfg4 {[%emt 0:02:27]} 20. Bf4 {[%emt 0:00:35]} Nd3 {[%emt 0:06:54]} 21. Bxd3 {[%emt 0:03:28]} Rxd3 {[%emt 0:00:06]} 22. h3 {[%emt 0:03:50]} Rxf3 {[%emt 0:17:34]} 23. gxf3 {[%emt 0:00:31]} Ne5 {[%emt 0:00:31]} *

[Event "3rd Matrix Cup 2024"]
[Site "New Delhi"]
[Date "2024.04.09"]
[Round "8.6"]
[White "Nirnay Garg"]
[Black "Saparya Ghosh"]
[Result "1/2-1/2"]
[ECO "D02"]
[WhiteElo "1828"]
[BlackElo "1759"]
[Annotator "NA RC"]
[PlyCount "97"]
[EventDate "2024.04.07"]
[EventType "swiss"]
[EventCountry "IND"]
[SourceTitle "playchess.com"]
[Source "ChessBase"]
[SourceQuality "1"]
[TimeControl "5400+30"]

1. d4 {[%emt 0:01:21]} Nf6 {[%emt 0:00:54]} 2. Bf4 {[%emt 0:00:09]} d5 {[%emt 0:00:10]} 3. e3 {[%emt 0:00:05]} c5 {[%emt 0:00:11]} 4. c3 {[%emt 0:00:04]} Nc6 {[%emt 0:00:07]} 5. Nd2 {[%emt 0:00:05]} e6 {[%emt 0:02:04]} 6. Ngf3 {[%emt 0:00:16]} cxd4 {[%emt 0:00:10] now scores much better than the old 6...Bd6.} 7. exd4 {[%emt 0:00:06] D02: 1 d4 d5 2 Nf3 sidelines, including 2...Nf6 3 g3 and 2...Nf6 3 Bf4.} Nh5 {[%emt 0:00:08]} 8. Be3 {[%emt 0:06:23]} Bd6 {[%emt 0:02:08]} 9. Ne5 {[%emt 0:01:13]} g6 {[%emt 0:00:46]} 10. Bb5 {[%emt 0:09:38]} Qc7 {[%emt 0:07:44]} 11. O-O {[%emt 0:10:09]} O-O {[%emt 0:05:52]} 12. f4 {[%emt 0:04:27]} f6 {[%emt 0:04:45]} 13. Nd3 {[%emt 0:03:48]} Ng7 {[%emt 0:07:05]} 14. Ba4 $146 {[%emt 0:04:23]} ({Predecessor:} 14. Nf3 Na5 15. Qe2 Nc4 16. Ba4 Bd7 17. Bxd7 Qxd7 18. Rae1 b6 19. Nd2 Na5 20. g4 Bc7 21. Bf2 Rae8 22. Bg3 Nb7 23. Qg2 Kh8 24. h3 Nd6 25. Re3 Qa4 {½-½ Lomasov,S (2493)-Alekseev,E (2610) EU-ch 18th Minsk 2017 (6)}) 14... Bd7 {[%emt 0:02:26]} 15. Rc1 {[%emt 0:05:17]} Nf5 {[%emt 0:03:47]} 16. Qe2 {[%emt 0:08:38]} Rae8 {[%emt 0:02:52]} 17. Nf3 {[%emt 0:02:25]} Na5 {[%emt 0:15:27]} 18. Bxd7 {[%emt 0:03:52]} Qxd7 {[%emt 0:00:30]} 19. Rce1 {[%emt 0:02:53]} Nc4 {[%emt 0:12:08]} 20. Bc1 {[%emt 0:02:59]} Qc7 $14 {[%emt 0:02:20]} 21. Qf2 {[%emt 0:04:42]} a5 {[%emt 0:01:19]} 22. Re2 {[%emt 0:02:31]} a4 {[%emt 0:03:18]} 23. Rfe1 {[%emt 0:01:14]} Ng7 {[%emt 0:00:44]} 24. Kh1 {[%emt 0:06:34]} b6 {[%emt 0:04:00]} 25. g4 {[%emt 0:02:44]} e5 {[%emt 0:06:27]} 26. dxe5 {[%emt 0:04:05]} fxe5 {[%emt 0:00:19]} 27. fxe5 {[%emt 0:00:16]} Nxe5 {[%emt 0:02:03]} 28. Ndxe5 {[%emt 0:01:16]} Rxe5 {[%emt 0:04:11]} 29. Rxe5 {[%emt 0:03:39]} Bxe5 {[%emt 0:00:05]} 30. Qg2 {[%emt 0:00:28]} Bf4 {[%emt 0:01:52]} 31. Nd4 {[%emt 0:04:33]} Qd7 {[%emt 0:01:48]} 32. Bxf4 {[%emt 0:00:57]} Rxf4 {[%emt 0:00:08]} 33. h3 {[%emt 0:00:18]} Qf7 {[%emt 0:01:19]} 34. Kg1 {[%emt 0:00:49]} h5 {[%emt 0:02:29]} 35. gxh5 {[%emt 0:02:45]} Nxh5 {[%emt 0:00:18]} 36. Re5 {[%emt 0:01:29]} Ng7 {[%emt 0:05:25]} 37. Rxd5 {[%emt 0:01:41]} Rf1+ {[%emt 0:01:07]} 38. Qxf1 {[%emt 0:00:02]} Qxd5 {[%emt 0:00:04]} 39. Qf6 {[%emt 0:01:01]} Qxa2 {[%emt 0:00:33]} 40. Qxb6 {[%emt 0:00:23]} Qb1+ {[%emt 0:00:24]} 41. Kh2 {[%emt 0:00:27]} Kh7 {[%emt 0:00:46]} 42. Qb5 {[%emt 0:00:41]} Qd1 {[%emt 0:00:26]} 43. Qe2 {[%emt 0:00:22]} Qc1 {[%emt 0:00:46]} 44. Qc2 {[%emt 0:00:32]} Qf4+ {[%emt 0:00:19]} 45. Kg2 {[%emt 0:00:33]} Nh5 {[%emt 0:00:19]} 46. Qf2 {[%emt 0:00:32]} Qg5+ {[%emt 0:00:22]} 47. Kh2 {[%emt 0:00:42]} Qe5+ {[%emt 0:00:39]} 48. Kg1 {[%emt 0:00:28]} Qg5+ {[%emt 0:00:15]} 49. Kh2 {[%emt 0:00:16]} 1/2-1/2

[Event "3rd Matrix Cup 2024"]
[Site "New Delhi"]
[Date "2024.04.09"]
[Round "8.7"]
[White "Om Batra"]
[Black "Arshpreet Singh"]
[Result "1/2-1/2"]
[ECO "B11"]
[WhiteElo "1804"]
[BlackElo "1902"]
[Annotator "RC"]
[PlyCount "87"]
[EventDate "2024.04.07"]
[EventType "swiss"]
[EventCountry "IND"]
[SourceTitle "playchess.com"]
[Source "ChessBase"]
[SourceQuality "1"]
[TimeControl "5400+30"]

1. e4 {[%emt 0:14:13]} c6 {[%emt 0:00:02]} 2. Nf3 {[%emt 0:07:02]} d5 {[%emt 0:00:07]} 3. Nc3 {[%emt 0:00:01]} dxe4 {[%emt 0:00:20]} 4. Nxe4 {[%emt 0:00:02]} Bg4 {[%emt 0:00:05]} 5. h3 {[%emt 0:00:09]} Bxf3 {[%emt 0:00:04]} 6. Qxf3 {[%emt 0:00:04]} Nd7 {[%emt 0:00:19]} 7. d4 {[%emt 0:00:50]} e6 {[%emt 0:00:10]} 8. Bf4 {[%emt 0:00:34]} Ndf6 {[%emt 0:01:32]} 9. c3 {[%emt 0:00:16]} Nxe4 {[%emt 0:00:17]} 10. Qxe4 {[%emt 0:00:02]} Nf6 {[%emt 0:00:05]} 11. Qc2 {[%emt 0:02:02]} Bd6 {[%emt 0:02:26]} 12. Bxd6 {[%emt 0:00:08]} Qxd6 {[%emt 0:00:05]} 13. Be2 {[%emt 0:00:03]} O-O {[%emt 0:00:33]} 14. O-O {[%emt 0:00:05]} e5 {[%emt 0:01:28]} 15. dxe5 {[%emt 0:00:23]} Qxe5 {[%emt 0:00:05]} 16. Bf3 {[%emt 0:00:13]} Rfe8 {[%emt 0:01:37]} 17. Rad1 {[%emt 0:00:18]} Re7 {[%emt 0:02:32]} 18. Qa4 {[%emt 0:03:07]} h6 {[%emt 0:09:07]} 19. Rd2 {[%emt 0:03:36]} Qc5 {[%emt 0:03:14]} 20. Qd4 {[%emt 1:07:22]} Qa5 {[%emt 0:05:30]} 21. Qc4 {[%emt 0:00:00]} Rae8 {[%emt 0:01:50]} 22. Qb3 {[%emt 0:00:00]} Nd7 {[%emt 0:02:28]} 23. a3 {[%emt 0:00:00]} Ne5 {[%emt 0:00:31]} 24. Be4 {[%emt 0:00:00]} Qa6 {[%emt 0:14:04]} 25. Qc2 {[%emt 0:00:00]} Nd7 {[%emt 0:12:05]} 26. Bd3 {[%emt 0:00:00]} Qb6 {[%emt 0:00:44]} 27. Re2 {[%emt 0:00:00]} Ne5 {[%emt 0:10:06]} 28. Re3 {[%emt 0:00:00]} Qc5 {[%emt 0:06:59]} 29. Rfe1 {[%emt 0:00:00]} Nxd3 {[%emt 0:06:18]} 30. Qxd3 {[%emt 0:00:00]} Rxe3 {[%emt 0:00:12]} 31. Rxe3 {[%emt 0:00:00]} Rxe3 {[%emt 0:00:11]} 32. Qxe3 {[%emt 0:00:00]} Qxe3 {[%emt 0:02:05]} 33. fxe3 {[%emt 0:00:00]} f5 {[%emt 0:04:50]} 34. Kf2 {[%emt 0:00:00]} Kf7 {[%emt 0:00:17]} 35. e4 {[%emt 0:00:00]} Kf6 {[%emt 0:01:17]} 36. exf5 {[%emt 0:00:00]} Kxf5 {[%emt 0:00:08]} 37. Ke3 {[%emt 0:00:00]} Ke5 {[%emt 0:00:21]} 38. c4 {[%emt 0:00:00]} b5 {[%emt 0:08:19]} 39. cxb5 {[%emt 0:09:30]} cxb5 {[%emt 0:00:04]} 40. h4 {[%emt 0:00:00]} h5 {[%emt 0:04:57]} 41. g3 {[%emt 0:00:00]} Kd5 {[%emt 0:01:53]} 42. Kd3 {[%emt 0:00:00]} a5 {[%emt 0:00:27]} 43. b3 {[%emt 0:00:00]} Ke5 44. Ke3 {[%emt 0:00:00]} 1/2-1/2

[Event "3rd Matrix Cup 2024"]
[Site "New Delhi"]
[Date "2024.04.09"]
[Round "8.8"]
[White "Shubhi Gupta"]
[Black "Aadya Gupta"]
[Result "1-0"]
[ECO "D17"]
[WhiteElo "1953"]
[BlackElo "1775"]
[Annotator "RC"]
[PlyCount "51"]
[EventDate "2024.04.07"]
[EventType "swiss"]
[EventCountry "IND"]
[SourceTitle "playchess.com"]
[Source "ChessBase"]
[SourceQuality "1"]
[TimeControl "5400+30"]

1. d4 {[%emt 0:01:43]} d5 {[%emt 0:00:35]} 2. Nf3 {[%emt 0:01:45]} Nf6 {[%emt 0:00:02]} 3. c4 {[%emt 0:00:28]} c6 {[%emt 0:00:06]} 4. Nc3 {[%emt 0:00:14]} dxc4 {[%emt 0:00:16]} 5. a4 {[%emt 0:01:04]} Bf5 {[%emt 0:00:28]} 6. Ne5 {[%emt 0:00:49]} Nbd7 {[%emt 0:01:26]} 7. Nxc4 {[%emt 0:01:26]} Qc7 {[%emt 0:01:43]} 8. g3 {[%emt 0:01:38]} e5 {[%emt 0:02:12]} 9. dxe5 {[%emt 0:03:52]} Nxe5 {[%emt 0:00:32]} 10. Bf4 {[%emt 0:04:48]} Nfd7 {[%emt 0:00:21]} 11. Bg2 {[%emt 0:01:21]} f6 {[%emt 0:00:56]} 12. O-O {[%emt 0:02:17]} g5 {[%emt 0:00:38]} 13. Bxe5 {[%emt 0:04:02]} Nxe5 {[%emt 0:00:02]} 14. Nxe5 {[%emt 0:03:28]} Qxe5 {[%emt 0:01:02]} 15. e4 {[%emt 0:00:44]} Bd7 {[%emt 0:02:58]} 16. Qh5+ {[%emt 0:07:36]} Kd8 {[%emt 0:02:52]} 17. Rfd1 {[%emt 0:00:48]} Kc7 {[%emt 0:02:14]} 18. Rac1 {[%emt 0:03:10]} Rd8 {[%emt 0:07:23]} 19. Qf7 {[%emt 0:03:24]} Qe6 {[%emt 0:07:55]} 20. Nb5+ {[%emt 0:00:31]} Kc8 {[%emt 0:00:23]} 21. Rxd7 {[%emt 0:00:16]} Qxd7 {[%emt 0:03:03]} 22. Bh3 {[%emt 0:00:06]} Be7 {[%emt 0:00:48]} 23. Qxe7 {[%emt 0:00:11]} Kb8 {[%emt 0:00:49]} 24. Bxd7 {[%emt 0:00:05]} cxb5 {[%emt 0:00:12]} 25. Bxb5 {[%emt 0:00:12]} a6 {[%emt 0:01:40]} 26. Rc7 {[%emt 0:00:05]} 1-0